fUST/lending_fUST_20250125
["ID","MTS","AMOUNT","RATE_DAILY","PERIOD"]
[350381153,1737819037059,-625.14642733,0.00016438,2]
[350381154,1737819037192,-500.0,0.00016438,2]
[350381155,1737819037202,-500.0,0.00016438,2]
[350381156,1737819037212,-500.0,0.00016438,2]
[350381157,1737819037221,-2131.94,0.00016438,2]
[350381158,1737819037231,-500.0,0.00016438,2]
[350381159,1737819037240,-500.0,0.00016438,2]
[350381160,1737819037249,-438.82105282,0.00016438,2]
[350381161,1737819037259,-500.0,0.00016438,2]
[350381162,1737819037268,-500.0,0.00016438,2]
[350381163,1737819037277,-555.74,0.00016438,2]
[350381164,1737819037287,-1257.01,0.00016438,2]
[350381165,1737819037296,-500.0,0.00016438,2]
[350381166,1737819037305,-1088.0,0.00016438,2]
[350381167,1737819037314,-500.0,0.00016438,2]
[350381168,1737819037323,-1037.6,0.00016438,2]
[350381169,1737819037343,-500.0,0.00016438,2]
[350381170,1737819037353,-502.08956457,0.00016438,2]
[350381171,1737819037363,-504.5311288,0.00016438,2]
[350381172,1737819037374,-500.0,0.00016438,2]
[350381173,1737819037384,-500.0,0.00016438,2]
[350381174,1737819037394,-500.0,0.00016438,2]
[350381175,1737819037404,-500.0,0.00016438,2]
[350381176,1737819037414,-2632.25,0.00016438,2]
[350381177,1737819037424,-501.78438965,0.00016438,2]
[350381178,1737819037434,-512.41,0.00016438,2]
[350381179,1737819037444,-500.0,0.00016438,2]
[350381180,1737819037454,-625.71,0.00016438,2]
[350381181,1737819037464,-500.0,0.00016438,2]
[350381182,1737819037474,-500.0,0.00016438,2]
[350381183,1737819037484,-501.59703703,0.00016438,2]
[350381184,1737819037494,-500.0,0.00016438,2]
[350381185,1737819037504,-272.22590162,0.00016438,2]
[350381186,1737819037515,-501.08718607,0.00016473,2]
[350381187,1737819037525,-500.0,0.00016575,2]
[350381188,1737819037535,-506.07222546,0.00016575,2]
[350381189,1737819037545,-509.88848356,0.00016575,2]
[350381190,1737819037556,-500.0,0.00016575,2]
[350381191,1737819037566,-410.87524537,0.00016575,2]
[350381192,1737819037576,-358.38955953,0.00016575,2]
[350381193,1737819037587,-509.47150901,0.00016575,2]
[350381194,1737819037597,-500.0,0.00016575,2]
[350381195,1737819037608,-501.31960412,0.00016575,2]
[350381196,1737819037617,-501.70891285,0.00016575,2]
[350381197,1737819037628,-500.95372082,0.00016575,2]
[350381198,1737819037638,-500.0,0.00016575,2]
[350381199,1737819037648,-500.0,0.00016575,2]
[350381200,1737819037658,-500.0,0.00016575,2]
[350381201,1737819037668,-500.0,0.00016575,2]
[350381202,1737819037680,-500.0,0.00016575,14]
[350381203,1737819037690,-500.0,0.00016575,2]
[350381204,1737819037700,-500.0,0.00016575,2]
[350381205,1737819037710,-514.86,0.00016575,2]
[350381206,1737819037721,-500.0,0.00016575,2]
[350381207,1737819037731,-500.0,0.00016575,2]
[350381208,1737819037740,-639.4,0.00016575,2]
[350381209,1737819037750,-500.0,0.00016575,2]
[350381210,1737819037760,-700.1,0.00016575,2]
[350381211,1737819037770,-500.0,0.00016575,2]
[350381212,1737819037780,-593.3,0.00016575,2]
[350381213,1737819037790,-1428.63,0.00016575,2]
[350381214,1737819037800,-500.0,0.00016575,2]
[350381215,1737819037813,-500.0,0.00016575,2]
[350381216,1737819037823,-500.0,0.00016575,2]
[350381217,1737819037834,-1513.42,0.00016575,2]
[350381218,1737819037844,-500.0,0.00016575,2]
[350381219,1737819037855,-500.0,0.00016575,2]
[350381220,1737819037866,-500.0,0.00016575,2]
[350381221,1737819037883,-762.47,0.00016575,2]
[350381222,1737819037897,-500.0,0.00016575,2]
[350381223,1737819037908,-670.98,0.00016575,2]
[350381224,1737819037918,-500.0,0.00016575,2]
[350381225,1737819037930,-552.28,0.00016575,2]
[350381226,1737819037940,-500.0,0.00016575,2]
[350381227,1737819037950,-715.38,0.00016575,2]
[350381228,1737819037961,-500.0,0.00016575,2]
[350381229,1737819037971,-500.0,0.00016575,2]
[350381230,1737819037980,-521.37,0.00016575,2]
[350381231,1737819037990,-820.72,0.00016575,2]
[350381232,1737819038000,-1643.36,0.00016575,2]
[350381233,1737819038010,-500.0,0.00016575,2]
[350381234,1737819038020,-500.4,0.00016575,2]
[350381235,1737819038030,-500.0,0.00016575,2]
[350381236,1737819038040,-500.0,0.00016575,2]
[350381237,1737819038051,-500.0,0.00016575,2]
[350381238,1737819038061,-500.0,0.00016575,2]
[350381239,1737819038071,-500.0,0.00016575,2]
[350381240,1737819038081,-500.0,0.00016575,2]
[350381241,1737819038091,-500.0,0.00016575,2]
[350381243,1737819038101,-500.0,0.00016575,2]
[350381245,1737819038111,-791.63,0.00016575,2]
[350381246,1737819038121,-500.0,0.00016575,2]
[350381247,1737819038131,-500.0,0.00016575,2]
[350381249,1737819038141,-500.0,0.00016575,2]
[350381250,1737819038151,-500.0,0.00016575,2]
[350381251,1737819038162,-649.28,0.00016575,2]
[350381252,1737819038171,-500.0,0.00016575,2]
[350381253,1737819038181,-500.0,0.00016575,2]
[350381254,1737819038191,-781.49,0.00016575,2]
[350381256,1737819038200,-500.0,0.00016575,2]
[350381257,1737819038211,-500.0,0.00016575,2]
[350381258,1737819038220,-500.0,0.00016575,2]
[350381259,1737819038231,-500.0,0.00016575,2]
[350381260,1737819038242,-527.83147228,0.00016575,2]
[350381261,1737819038258,-500.0,0.00016575,2]
[350381262,1737819038267,-601.54,0.00016575,2]
[350381263,1737819038277,-500.0,0.00016575,2]
[350381264,1737819038286,-508.79477921,0.00016575,2]
[350381265,1737819038296,-1732.3,0.00016575,2]
[350381266,1737819038306,-500.0,0.00016575,2]
[350381267,1737819038315,-494.5,0.00016575,2]
[350381268,1737819038325,-500.0,0.00016575,2]
[350381269,1737819038335,-665.73,0.00016575,2]
[350381270,1737819038345,-500.0,0.00016575,2]
[350381271,1737819038355,-508.10177185,0.00016575,2]
[350381272,1737819038365,-500.0,0.00016575,2]
[350381273,1737819038375,-500.0,0.00016575,2]
[350381274,1737819038384,-508.78,0.00016575,2]
[350381275,1737819038394,-500.0,0.00016575,2]
[350381276,1737819038404,-2373.56,0.00016575,2]
[350381277,1737819038413,-600.33,0.00016575,2]
[350381279,1737819038425,-500.0,0.00016575,2]
[350381281,1737819038434,-500.0,0.00016575,2]
[350381283,1737819038444,-500.0,0.00016575,2]
[350381285,1737819038453,-647.39,0.00016575,2]
[350381287,1737819038463,-500.0,0.00016575,2]
[350381288,1737819038472,-1118.58,0.00016575,2]
[350381289,1737819038481,-500.0,0.00016575,2]
[350381290,1737819038491,-389.73569849,0.00016575,2]
[350381291,1737819038500,-500.0,0.00016575,2]
[350381292,1737819038509,-500.0,0.00016575,2]
[350381293,1737819038518,-500.0,0.00016575,2]
[350381294,1737819038528,-500.0,0.00016575,2]
[350381295,1737819038538,-500.0,0.00016575,2]
[350381296,1737819038548,-480.44432716,0.00016575,2]
[350381297,1737819038557,-500.0,0.00016575,2]
[350381298,1737819038567,-521.2,0.00016575,2]
[350381299,1737819038576,-14149.9,0.00016575,2]
[350381300,1737819038586,-3995.06,0.00016575,2]
[350381301,1737819038595,-500.0,0.00016575,2]
[350381302,1737819038605,-500.0,0.00016575,2]
[350381303,1737819038615,-500.0,0.00016575,2]
[350381304,1737819038624,-151.0,0.00016575,2]
[350381305,1737819038634,-1033.34,0.00016575,2]
[350381306,1737819038643,-500.0,0.00016575,2]
[350381307,1737819038653,-151.0,0.00016575,2]
[350381308,1737819038662,-826.79,0.00016575,2]
[350381309,1737819038671,-552.6,0.00016575,2]
[350381310,1737819038682,-500.0,0.00016575,2]
[350381311,1737819038691,-398.75,0.00016575,2]
[350381312,1737819038701,-1743.09,0.00016575,2]
[350381313,1737819038710,-500.0,0.00016575,2]
[350381314,1737819038719,-151.0,0.00016575,2]
[350381315,1737819038729,-548.39,0.00016575,2]
[350381316,1737819038738,-10153.16,0.00016575,2]
[350381317,1737819038748,-500.0,0.00016575,2]
[350381318,1737819038757,-500.0,0.00016575,2]
[350381319,1737819038767,-500.0,0.00016575,2]
[350381320,1737819038776,-1713.18,0.00016575,2]
[350381321,1737819038786,-633.18,0.00016575,2]
[350381322,1737819038795,-500.0,0.00016575,2]
[350381323,1737819038806,-500.0,0.00016575,2]
[350381324,1737819038816,-980.85,0.00016575,2]
[350381325,1737819038825,-616.38,0.00016575,2]
[350381326,1737819038834,-1780.93,0.00016575,2]
[350381327,1737819038846,-709.74,0.00016575,2]
[350381328,1737819038855,-500.0,0.00016575,2]
[350381329,1737819038865,-151.0,0.00016575,2]
[350381330,1737819038875,-500.0,0.00016575,2]
[350381331,1737819038885,-724.53,0.00016575,2]
[350381332,1737819038895,-500.0,0.00016575,2]
[350381333,1737819038904,-807.94,0.00016575,2]
[350381334,1737819038914,-2658.28,0.00016575,2]
[350381335,1737819038923,-500.0,0.00016575,2]
[350381336,1737819038932,-670.92,0.00016575,2]
[350381337,1737819038942,-500.0,0.00016575,2]
[350381338,1737819038951,-1625.17,0.00016575,2]
[350381339,1737819038961,-33682.89,0.00016575,2]
[350381340,1737819038971,-151.0,0.00016575,2]
[350381341,1737819038980,-516.03,0.00016575,2]
[350381342,1737819038989,-577.33,0.00016575,2]
[350381343,1737819038999,-1757.12,0.00016575,2]
[350381344,1737819039008,-500.0,0.00016575,2]
[350381345,1737819039018,-2013.22,0.00016575,2]
[350381346,1737819039027,-1936.36,0.00016575,2]
[350381347,1737819039037,-739.0,0.00016575,2]
[350381349,1737819039046,-9368.44,0.00016575,2]
[350381350,1737819039055,-956.96,0.00016575,2]
[350381351,1737819039065,-789.42,0.00016575,2]
[350381352,1737819039074,-500.0,0.00016575,2]
[350381353,1737819039084,-881.58,0.00016575,2]
[350381354,1737819039094,-500.0,0.00016575,2]
[350381355,1737819039103,-963.92,0.00016575,2]
[350381356,1737819039112,-500.0,0.00016575,2]
[350381357,1737819039122,-500.0,0.00016575,2]
[350381358,1737819039132,-2131.94,0.00016575,2]
[350381359,1737819039141,-500.0,0.00016575,2]
[350381360,1737819039151,-500.0,0.00016575,2]
[350381361,1737819039160,-500.0,0.00016575,2]
[350381362,1737819039170,-555.74,0.00016575,2]
[350381363,1737819039180,-1257.01,0.00016575,2]
[350381364,1737819039190,-1088.0,0.00016575,2]
[350381365,1737819039200,-1037.6,0.00016575,2]
[350381366,1737819039209,-2632.25,0.00016575,2]
[350381367,1737819039218,-512.41,0.00016575,2]
[350381368,1737819039227,-500.0,0.00016575,2]
[350381369,1737819039237,-7036.20140045,0.00016612,2]
[350381370,1737819039247,-10335.22751205,0.00016657,2]
[350381371,1737819039257,-187.31425181,0.00016712,2]
[350381372,1737819039266,-500.0,0.00016712,2]
[350381373,1737819039275,-575.84815187,0.00016712,2]
[350381374,1737819039284,-500.0,0.00016712,2]
[350381375,1737819039294,-500.0,0.00016712,2]
[350381376,1737819039304,-503.97478419,0.00016712,14]
[350381377,1737819039313,-500.0,0.00016712,2]
[350381378,1737819039323,-500.0,0.00016712,2]
[350381379,1737819039332,-514.86,0.00016712,2]
[350381380,1737819039341,-500.0,0.00016712,2]
[350381381,1737819039350,-500.0,0.00016712,2]
[350381382,1737819039360,-639.4,0.00016712,2]
[350381383,1737819039369,-201.720458,0.00016712,2]
[350381384,1737819039378,-500.0,0.00016712,2]
[350381385,1737819039388,-700.1,0.00016712,2]
[350381386,1737819039397,-500.0,0.00016712,2]
[350381387,1737819039406,-593.3,0.00016712,2]
[350381388,1737819039425,-1428.63,0.00016712,2]
[350381389,1737819039436,-500.0,0.00016712,2]
[350381390,1737819039445,-500.0,0.00016712,2]
[350381391,1737819039454,-500.0,0.00016712,2]
[350381392,1737819039463,-1513.42,0.00016712,2]
[350381393,1737819039472,-500.0,0.00016712,2]
[350381394,1737819039482,-500.0,0.00016712,2]
[350381395,1737819039491,-500.0,0.00016712,2]
[350381396,1737819039500,-762.47,0.00016712,2]
[350381397,1737819039510,-500.0,0.00016712,2]
[350381398,1737819039519,-670.98,0.00016712,2]
[350381399,1737819039528,-500.0,0.00016712,2]
[350381400,1737819039539,-151.0,0.00016712,2]
[350381401,1737819039548,-151.0,0.00016712,2]
[350381402,1737819039557,-552.28,0.00016712,2]
[350381403,1737819039567,-500.0,0.00016712,2]
[350381404,1737819039576,-715.38,0.00016712,2]
[350381405,1737819039585,-500.0,0.00016712,2]
[350381406,1737819039595,-500.0,0.00016712,2]
[350381407,1737819039604,-521.37,0.00016712,2]
[350381408,1737819039614,-820.72,0.00016712,2]
[350381409,1737819039623,-1643.36,0.00016712,2]
[350381410,1737819039632,-541.82317754,0.00016712,2]
[350381411,1737819039642,-500.4,0.00016712,2]
[350381412,1737819039652,-500.0,0.00016712,2]
[350381413,1737819039661,-500.0,0.00016712,2]
[350381414,1737819039671,-500.0,0.00016712,2]
[350381415,1737819039682,-500.0,0.00016712,2]
[350381416,1737819039691,-500.0,0.00016712,2]
[350381417,1737819039702,-500.0,0.00016712,2]
[350381418,1737819039711,-500.0,0.00016712,2]
[350381419,1737819039721,-500.0,0.00016712,2]
[350381420,1737819039731,-791.63,0.00016712,2]
[350381421,1737819039741,-500.0,0.00016712,2]
[350381422,1737819039751,-500.0,0.00016712,2]
[350381423,1737819039761,-500.0,0.00016712,2]
[350381424,1737819039770,-500.0,0.00016712,2]
[350381425,1737819039780,-649.28,0.00016712,2]
[350381426,1737819039789,-500.0,0.00016712,2]
[350381427,1737819039804,-500.0,0.00016712,2]
[350381428,1737819039814,-781.49,0.00016712,2]
[350381429,1737819039824,-500.0,0.00016712,2]
[350381430,1737819039834,-500.0,0.00016712,2]
[350381431,1737819039845,-500.0,0.00016712,2]
[350381432,1737819039855,-601.54,0.00016712,2]
[350381433,1737819039864,-500.0,0.00016712,2]
[350381434,1737819040000,-1732.3,0.00016712,2]
[350381435,1737819040011,-500.0,0.00016712,2]
[350381436,1737819040021,-665.73,0.00016712,2]
[350381437,1737819040032,-500.0,0.00016712,2]
[350381438,1737819040042,-500.0,0.00016712,2]
[350381439,1737819040052,-500.0,0.00016712,2]
[350381440,1737819040062,-508.78,0.00016712,2]
[350381441,1737819040071,-500.0,0.00016712,2]
[350381443,1737819040080,-2373.56,0.00016712,2]
[350381445,1737819040089,-600.33,0.00016712,2]
[350381447,1737819040099,-500.0,0.00016712,2]
[350381448,1737819040108,-500.0,0.00016712,2]
[350381449,1737819040118,-500.0,0.00016712,2]
[350381450,1737819040127,-647.39,0.00016712,2]
[350381451,1737819040137,-500.0,0.00016712,2]
[350381452,1737819040147,-1118.58,0.00016712,2]
[350381453,1737819040156,-500.0,0.00016712,2]
[350381454,1737819040165,-500.0,0.00016712,2]
[350381455,1737819040175,-500.0,0.00016712,2]
[350381456,1737819040184,-500.0,0.00016712,2]
[350381457,1737819040193,-500.0,0.00016712,2]
[350381458,1737819040202,-500.0,0.00016712,2]
[350381459,1737819040211,-500.0,0.00016712,2]
[350381460,1737819040221,-521.2,0.00016712,2]
[350381461,1737819040230,-14149.9,0.00016712,2]
[350381462,1737819040239,-3995.06,0.00016712,2]
[350381463,1737819040249,-500.0,0.00016712,2]
[350381464,1737819040258,-500.0,0.00016712,2]
[350381465,1737819040268,-500.0,0.00016712,2]
[350381466,1737819040277,-151.0,0.00016712,2]
[350381467,1737819040287,-1033.34,0.00016712,2]
[350381468,1737819040296,-177.934324,0.00016712,2]
[350381469,1737819040305,-826.79,0.00016712,2]
[350381470,1737819040315,-552.6,0.00016712,2]
[350381471,1737819040324,-500.0,0.00016712,2]
[350381472,1737819040334,-1743.09,0.00016712,2]
[350381473,1737819040343,-500.0,0.00016712,2]
[350381474,1737819040352,-151.0,0.00016712,2]
[350381475,1737819040362,-151.0,0.00016712,2]
[350381476,1737819040371,-548.39,0.00016712,2]
[350381477,1737819040380,-10153.16,0.00016712,2]
[350381478,1737819040390,-500.0,0.00016712,2]
[350381480,1737819040400,-500.0,0.00016712,2]
[350381482,1737819040410,-1713.18,0.00016712,2]
[350381484,1737819040419,-633.18,0.00016712,2]
[350381485,1737819040430,-500.0,0.00016712,2]
[350381486,1737819040439,-980.85,0.00016712,2]
[350381487,1737819040449,-616.38,0.00016712,2]
[350381488,1737819040458,-1780.93,0.00016712,2]
[350381489,1737819040468,-709.74,0.00016712,2]
[350381490,1737819040477,-151.0,0.00016712,2]
[350381491,1737819040487,-151.0,0.00016712,2]
[350381492,1737819040496,-205.7,0.00016712,2]
[350381493,1737819040506,-724.53,0.00016712,2]
[350381494,1737819040516,-807.94,0.00016712,2]
[350381495,1737819040525,-2658.28,0.00016712,2]
[350381496,1737819040535,-500.0,0.00016712,2]
[350381497,1737819040545,-670.92,0.00016712,2]
[350381498,1737819040555,-1625.17,0.00016712,2]
[350381499,1737819040564,-33682.89,0.00016712,2]
[350381500,1737819040574,-516.03,0.00016712,2]
[350381502,1737819040584,-577.33,0.00016712,2]
[350381504,1737819040594,-1757.12,0.00016712,2]
[350381506,1737819040604,-500.0,0.00016712,2]
[350381508,1737819040613,-2013.22,0.00016712,2]
[350381510,1737819040622,-1936.36,0.00016712,2]
[350381512,1737819040632,-739.0,0.00016712,2]
[350381514,1737819040641,-9368.44,0.00016712,2]
[350381516,1737819040650,-956.96,0.00016712,2]
[350381518,1737819040660,-789.42,0.00016712,2]
[350381520,1737819040669,-500.0,0.00016712,2]
[350381522,1737819040679,-881.58,0.00016712,2]
[350381524,1737819040690,-500.0,0.00016712,2]
[350381526,1737819040699,-963.92,0.00016712,2]
[350381528,1737819040708,-500.0,0.00016712,2]
[350381530,1737819040717,-500.0,0.00016712,2]
[350381532,1737819040727,-2131.94,0.00016712,2]
[350381534,1737819040737,-500.0,0.00016712,2]
[350381536,1737819040746,-500.0,0.00016712,2]
[350381538,1737819040755,-500.0,0.00016712,2]
[350381540,1737819040765,-555.74,0.00016712,2]
[350381542,1737819040774,-1257.01,0.00016712,2]
[350381544,1737819040784,-1088.0,0.00016712,2]
[350381546,1737819040793,-1037.6,0.00016712,2]
[350381548,1737819040804,-2632.25,0.00016712,2]
[350381550,1737819040816,-512.41,0.00016712,2]
[350381552,1737819040826,-3000.0,0.00016749,2]
[350381554,1737819040835,-12678.59,0.000168,2]
[350381556,1737819040845,-9339.63,0.000168,2]
[350381558,1737819040856,-151.0,0.000168,2]
[350381560,1737819040865,-500.0,0.00016849,2]
[350381562,1737819040875,-500.0,0.00016849,2]
[350381564,1737819040886,-463.95301885,0.00016849,2]
[350381566,1737819040896,-514.86,0.00016849,2]
[350381568,1737819040905,-500.0,0.00016849,2]
[350381570,1737819040915,-500.0,0.00016849,2]
[350381572,1737819040925,-639.4,0.00016849,2]
[350381575,1737819040935,-500.0,0.00016849,2]
[350381576,1737819040946,-700.1,0.00016849,2]
[350381578,1737819040956,-500.0,0.00016849,2]
[350381581,1737819040966,-593.3,0.00016849,2]
[350381583,1737819040975,-1428.63,0.00016849,2]
[350381584,1737819040984,-500.0,0.00016849,2]
[350381586,1737819040994,-500.0,0.00016849,2]
[350381588,1737819041003,-500.0,0.00016849,2]
[350381591,1737819041012,-1513.42,0.00016849,2]
[350381592,1737819041022,-500.0,0.00016849,2]
[350381594,1737819041031,-500.0,0.00016849,2]
[350381597,1737819041041,-500.0,0.00016849,2]
[350381598,1737819041050,-762.47,0.00016849,2]
[350381600,1737819041059,-500.0,0.00016849,2]
[350381602,1737819041068,-670.98,0.00016849,2]
[350381604,1737819041078,-500.0,0.00016849,2]
[350381606,1737819041087,-151.0,0.00016849,2]
[350381608,1737819041096,-552.28,0.00016849,2]
[350381610,1737819041106,-500.0,0.00016849,2]
[350381612,1737819041115,-715.38,0.00016849,2]
[350381614,1737819041127,-500.0,0.00016849,2]
[350381616,1737819041136,-500.0,0.00016849,2]
[350381618,1737819041145,-521.37,0.00016849,2]
[350381620,1737819041154,-820.72,0.00016849,2]
[350381622,1737819041163,-1643.36,0.00016849,2]
[350381624,1737819041174,-500.4,0.00016849,2]
[350381626,1737819041183,-500.0,0.00016849,2]
[350381628,1737819041195,-283.58205153,0.00016849,2]
[350381631,1737819041210,-500.0,0.00016849,2]
[350381634,1737819041224,-500.0,0.00016849,2]
[350381636,1737819041238,-500.0,0.00016849,2]
[350381638,1737819041249,-500.0,0.00016849,2]
[350381640,1737819041261,-500.0,0.00016849,2]
[350381643,1737819041274,-500.0,0.00016849,2]
[350381645,1737819041287,-791.63,0.00016849,2]
[350381648,1737819041301,-500.0,0.00016849,2]
[350381650,1737819041314,-500.0,0.00016849,2]
[350381653,1737819041327,-451.7851618,0.00016849,2]
[350381655,1737819041341,-500.0,0.00016849,2]
[350381658,1737819041355,-649.28,0.00016849,2]
[350381660,1737819041368,-500.0,0.00016849,2]
[350381662,1737819041380,-500.0,0.00016849,2]
[350381664,1737819041392,-781.49,0.00016849,2]
[350381667,1737819041404,-483.69139454,0.00016849,2]
[350381669,1737819041417,-500.0,0.00016849,2]
[350381671,1737819041429,-500.0,0.00016849,2]
[350381674,1737819041442,-601.54,0.00016849,2]
[350381676,1737819041453,-337.9,0.00016849,2]
[350381678,1737819041463,-1732.3,0.00016849,2]
[350381680,1737819041476,-500.0,0.00016849,2]
[350381683,1737819041487,-665.73,0.00016849,2]
[350381685,1737819041500,-500.0,0.00016849,2]
[350381687,1737819041513,-500.0,0.00016849,2]
[350381690,1737819041526,-500.0,0.00016849,2]
[350381692,1737819041539,-508.78,0.00016849,2]
[350381694,1737819041558,-500.0,0.00016849,2]
[350381697,1737819041572,-2373.56,0.00016849,2]
[350381699,1737819041585,-600.33,0.00016849,2]
[350381702,1737819041597,-500.0,0.00016849,2]
[350381704,1737819041607,-500.0,0.00016849,2]
[350381706,1737819041618,-500.0,0.00016849,2]
[350381708,1737819041630,-647.39,0.00016849,2]
[350381710,1737819041643,-500.0,0.00016849,2]
[350381713,1737819041656,-1118.58,0.00016849,2]
[350381715,1737819041670,-500.0,0.00016849,2]
[350381717,1737819041683,-500.0,0.00016849,2]
[350381720,1737819041695,-500.0,0.00016849,2]
[350381722,1737819041706,-500.0,0.00016849,2]
[350381724,1737819041719,-500.0,0.00016849,2]
[350381726,1737819041731,-500.0,0.00016849,2]
[350381729,1737819041742,-500.0,0.00016849,2]
[350381731,1737819041753,-521.2,0.00016849,2]
[350381733,1737819041765,-14149.9,0.00016849,2]
[350381735,1737819041777,-3995.06,0.00016849,2]
[350381737,1737819041788,-500.0,0.00016849,2]
[350381740,1737819041800,-500.0,0.00016849,2]
[350381742,1737819041815,-500.0,0.00016849,2]
[350381744,1737819041826,-151.0,0.00016849,2]
[350381746,1737819041838,-1033.34,0.00016849,2]
[350381748,1737819041851,-826.79,0.00016849,2]
[350381751,1737819041863,-552.6,0.00016849,2]
[350381753,1737819041874,-500.0,0.00016849,2]
[350381755,1737819041887,-1743.09,0.00016849,2]
[350381757,1737819041900,-515.91728818,0.00016849,2]
[350381759,1737819041911,-183.124491,0.00016849,2]
[350381762,1737819041922,-548.39,0.00016849,2]
[350381764,1737819041934,-10153.16,0.00016849,2]
[350381766,1737819041945,-500.0,0.00016849,2]
[350381768,1737819041957,-500.0,0.00016849,2]
[350381770,1737819041968,-1713.18,0.00016849,2]
[350381772,1737819041980,-633.18,0.00016849,2]
[350381775,1737819041991,-500.0,0.00016849,2]
[350381777,1737819042002,-980.85,0.00016849,2]
[350381779,1737819042013,-616.38,0.00016849,2]
[350381781,1737819042025,-1780.93,0.00016849,2]
[350381783,1737819042035,-709.74,0.00016849,2]
[350381785,1737819042046,-151.0,0.00016849,2]
[350381788,1737819042057,-724.53,0.00016849,2]
[350381790,1737819042068,-807.94,0.00016849,2]
[350381792,1737819042080,-2658.28,0.00016849,2]
[350381793,1737819042091,-500.0,0.00016849,2]
[350381794,1737819042102,-670.92,0.00016849,2]
[350381795,1737819042113,-1625.17,0.00016849,2]
[350381796,1737819042124,-33682.89,0.00016849,2]
[350381797,1737819042135,-516.03,0.00016849,2]
[350381798,1737819042146,-577.33,0.00016849,2]
[350381799,1737819042157,-1757.12,0.00016849,2]
[350381800,1737819042169,-2013.22,0.00016849,2]
[350381801,1737819042180,-500.0,0.00016849,2]
[350381802,1737819042191,-1936.36,0.00016849,2]
[350381803,1737819042202,-739.0,0.00016849,2]
[350381804,1737819042212,-9368.44,0.00016849,2]
[350381805,1737819042223,-956.96,0.00016849,2]
[350381806,1737819042234,-789.42,0.00016849,2]
[350381807,1737819042246,-500.0,0.00016849,2]
[350381809,1737819042256,-881.58,0.00016849,2]
[350381811,1737819042267,-500.0,0.00016849,2]
[350381813,1737819042281,-963.92,0.00016849,2]
[350381816,1737819042292,-500.0,0.00016849,2]
[350381818,1737819042304,-500.0,0.00016849,2]
[350381820,1737819042315,-2131.94,0.00016849,2]
[350381822,1737819042326,-500.0,0.00016849,2]
[350381824,1737819042337,-206.09343151,0.00016849,2]
[350381827,1737819042348,-500.0,0.00016849,2]
[350381829,1737819042359,-555.74,0.00016849,2]
[350381831,1737819042370,-1257.01,0.00016849,2]
[350381833,1737819042381,-1088.0,0.00016849,2]
[350381835,1737819042392,-1037.6,0.00016849,2]
[350381838,1737819042403,-2632.25,0.00016849,2]
[350381840,1737819042414,-512.41,0.00016849,2]
[350381842,1737819042425,-380.54901838,0.00016872,2]
[350381844,1737819042436,-151.0,0.000169,2]